bitfinex/quotes_SOLUSD_20260310
["timestamp","ask_amount","ask_price","bid_price","bid_amount"]
[1773129719068,10.89799609,86.94,86.928,1.19762838]
[1773129719264,10.89799609,86.95,86.928,1.19762838]
[1773129719466,11.16473728,86.95,86.921,12.70228519]
[1773129719662,0.26674119,86.949,86.921,11.50465681]
[1773129719869,11.49451711,86.998,86.941,1.19762838]
[1773129720071,0.26674119,86.989,86.951,1.19762838]
[1773129720492,11.49451711,86.998,86.951,1.19762838]
[1773129720663,0.26857724,86.997,86.96,10.89799609]
[1773129720868,0.26857724,86.997,86.961,1.19762838]
[1773129721080,0.26857724,86.997,86.913,3.69383402]
[1773129721081,0.26857724,86.969,86.909,1.19762838]
[1773129721284,10.89799609,86.97,86.931,1.19762838]
[1773129721590,10.89799609,86.98,86.941,1.19762838]
[1773129721973,11.16838606,86.97,86.941,1.19762838]
[1773129722295,10.89799609,86.96,86.931,1.19762838]
[1773129722471,10.89799609,86.97,86.931,1.19762838]
[1773129722673,0.27218593,86.969,86.931,1.19762838]
[1773129723271,0.27218593,86.969,86.932,40.26135369]
[1773129723476,0.27218593,86.969,86.933,1.19762838]
[1773129723794,10.8919418,86.97,86.933,1.19762838]
[1773129724000,10.8919418,86.96,86.933,1.19762838]
[1773129724492,11.49840019,86.969,86.911,1.27773043]
[1773129724493,10.8919418,86.94,86.911,1.27773043]
[1773129724789,10.8919418,86.94,86.908,11.50642058]
[1773129724790,10.8919418,86.93,86.908,11.50642058]
[1773129724975,10.8919418,86.92,86.904,1.27773043]
[1773129725172,10.8919418,86.92,86.898,11.50771268]
[1773129725385,10.8919418,86.92,86.898,12.78544311]
[1773129725573,10.8919418,86.91,86.893,11.50831211]
[1773129725775,10.8919418,86.91,86.894,1.27773043]
[1773129725974,10.8919418,86.9,86.872,1.27773043]
[1773129726299,10.8919418,86.91,86.872,1.27773043]
[1773129726675,10.8919418,86.89,86.872,1.27773043]
[1773129727684,46.00950103,86.939,86.85,11.0919418]
[1773129727685,10.8919418,86.93,86.881,1.27773043]
[1773129727887,1.24068435,86.976,86.914,1.27773043]
[1773129728101,10.8919418,86.97,86.931,1.27773043]
[1773129728295,10.8919418,86.98,86.941,0.70248544]
[1773129728476,1.24068435,86.988,86.95,12.16967223]
[1773129728676,12.13262615,86.98,86.95,12.16967223]
[1773129728910,12.13262615,86.98,86.951,1.27773043]
[1773129729274,1.24068435,86.959,86.93,1.27773043]
[1773129729579,10.8919418,86.98,86.952,1.27773043]
[1773129729997,11.49702801,86.979,86.952,1.27773043]
[1773129730899,10.8919418,86.99,86.952,1.27773043]
[1773129731103,12.73572998,86.994,86.952,1.27773043]
[1773129731478,1.24068435,86.993,86.952,1.27773043]
[1773129731678,11.49530991,86.992,86.962,1.27773043]
[1773129732588,1.24068435,86.979,86.94,10.8919418]
[1773129732801,1.24068435,86.979,86.95,10.8919418]
[1773129733003,1.24068435,87.009,86.97,10.8919418]
[1773129733299,11.49134701,87.022,86.96,10.8919418]
[1773129733300,1.24068435,86.999,86.96,10.8919418]
[1773129733480,11.49134701,87.022,86.97,10.8919418]
[1773129733481,1.24068435,87.009,86.97,10.8919418]
[1773129733793,1.24068435,87.007,86.971,11.49808556]
[1773129733989,1.24068435,87.007,86.971,40.24329948]
[1773129734495,1.24068435,87.007,86.98,10.8919418]
[1773129735381,1.24068435,87.007,86.978,11.4971602]
[1773129735691,12.73289535,87.016,86.979,1.01427119]
[1773129736189,1.24068435,87.009,86.978,11.4971602]
[1773129738394,1.24068435,87.009,86.972,1.02176402]
[1773129738771,1.24068435,87.007,86.972,1.02176402]
[1773129739594,1.24068435,86.999,86.966,11.49865571]
[1773129739979,10.8919418,86.99,86.966,11.49865571]
[1773129740294,1.24068435,86.989,86.958,1.02910353]
[1773129740502,10.8919418,86.98,86.959,12.52877578]
[1773129740802,12.13262615,87.0,86.961,1.03271263]
[1773129741375,12.13262615,87.0,86.971,1.03271263]
[1773129742086,10.8919418,87.0,86.971,1.03271263]
[1773129742282,10.8919418,86.99,86.961,1.0362789]
[1773129742491,1.24068435,86.988,86.952,1.03980254]
[1773129742701,1.24068435,86.979,86.951,11.50073029]
[1773129743198,1.24068435,86.979,86.952,1.03980254]
[1773129743699,1.24068435,86.988,86.952,1.03980254]
[1773129744810,1.24068435,86.988,86.954,1.04674329]
[1773129746789,1.24068435,86.988,86.956,1.05356955]
[1773129747991,1.24068435,86.986,86.956,1.05356955]
[1773129748184,10.8919418,87.0,86.961,1.05692207]
[1773129748411,1.24068435,87.002,86.971,1.05692207]
[1773129748601,12.13262615,87.0,86.971,1.05692207]
[1773129749508,12.13262615,87.0,86.972,12.56142342]
[1773129749708,1.24068435,87.0,86.972,12.56142342]
[1773129750502,12.13262615,87.0,86.972,12.56142342]
[1773129751010,1.24068435,87.007,86.973,1.06668273]
[1773129751901,12.13262615,87.0,86.974,11.49768896]
[1773129752109,1.24068435,86.999,86.974,11.49768896]
[1773129754014,11.49451711,86.998,86.974,11.49768896]
[1773129754202,1.26650501,86.989,86.961,11.49940778]
[1773129754711,1.26650501,86.979,86.951,11.50073029]
[1773129755596,1.26650501,86.979,86.95,28.75212402]
[1773129755792,1.26650501,86.969,86.934,1.08517674]
[1773129755991,1.26650501,86.969,86.901,12.83830336]
[1773129755992,1.26650501,86.976,86.941,1.08517674]
[1773129756208,10.8919418,86.98,86.951,1.08517674]
[1773129757591,10.8919418,86.98,86.952,11.50059803]
[1773129757792,10.8919418,86.98,86.953,1.09108547]
[1773129758019,12.15844681,86.99,86.953,1.09108547]
[1773129758311,1.26650501,86.997,86.97,11.98302727]
[1773129759200,10.8919418,87.01,86.97,11.98302727]
[1773129759201,1.26650501,87.004,86.971,1.09396839]
[1773129759410,1.26650501,87.009,86.971,1.09396839]
[1773129760616,1.26650501,87.007,86.973,1.09966371]
[1773129762315,3.69383402,87.021,86.972,40.24283677]
[1773129762316,1.26650501,87.015,86.981,1.10246325]
[1773129762708,1.26650501,87.015,86.983,1.10521345]
[1773129764005,1.26650501,87.009,86.982,11.49663148]
[1773129764515,11.49240352,87.014,86.967,11.49861441]
[1773129764516,1.26650501,86.999,86.967,11.49861441]
[1773129764819,1.26650501,86.998,86.962,28.74802443]
[1773129765121,10.8919418,87.01,86.971,1.11065949]
[1773129765300,1.26650501,87.009,86.971,1.11065949]
[1773129766224,11.49319602,87.008,86.973,1.11332293]
[1773129766446,1.26650501,87.007,86.973,1.11332293]
[1773129768523,1.26650501,87.006,86.974,11.49768896]
[1773129768740,4.06291349,87.0,86.958,1.12116772]
[1773129768905,4.06291349,87.0,70.403,1.0]
[1773129768906,1.26650501,86.989,86.961,1.12116772]
[1773129770626,1.26650501,86.989,86.962,11.49927554]
[1773129770819,11.49562143,86.99,86.95,28.75189998]
[1773129770820,1.26650501,86.987,86.957,11.49984365]
[1773129771520,1.26650501,86.987,86.945,11.50152395]
[1773129771721,1.26650501,86.987,86.906,11.49562143]
[1773129771722,1.31370039,86.969,86.931,11.50337624]
[1773129772024,40.23543476,86.988,86.931,11.50337624]
[1773129772025,1.31370039,86.987,86.95,4.06291349]
[1773129772407,1.31370039,86.987,86.948,1.1312145]
[1773129772616,1.31370039,86.979,86.94,4.06291349]
[1773129772813,1.31370039,86.979,86.951,1.13364742]
[1773129773705,1.31370039,86.979,86.941,1.13605397]
[1773129774709,1.31370039,86.979,86.951,1.13843211]
[1773129774909,1.31370039,86.986,86.96,4.06291349]
[1773129775328,1.31370039,86.985,86.96,4.06291349]
[1773129775529,1.31370039,86.994,86.961,1.14078637]
[1773129775930,1.31370039,86.994,86.96,4.06291349]
[1773129775931,1.31370039,86.989,86.942,40.25672287]
[1773129776230,1.31370039,86.989,86.943,1.14078637]
[1773129776413,1.31370039,86.989,86.95,4.06291349]
[1773129776915,1.31370039,86.987,86.952,1.14309191]
[1773129778424,28.73611856,86.999,86.961,1.1453786]
[1773129778425,11.49533524,86.992,86.961,1.1453786]
[1773129778747,12.80903563,86.992,86.961,1.1453786]
[1773129778947,1.31370039,86.991,86.962,11.49927554]
[1773129779731,1.31370039,86.991,86.962,12.64916624]
[1773129780633,1.31370039,87.008,86.971,1.1521363]
[1773129781129,1.31370039,87.006,86.973,1.1521363]
[1773129781330,1.31370039,87.006,86.98,10.88343235]
[1773129781713,1.31370039,87.006,86.973,1.1521363]
[1773129782112,10.88343235,87.0,86.966,1.15433118]
[1773129782312,1.31370039,86.999,86.97,12.03776353]
[1773129782512,1.31370039,86.989,86.95,10.88343235]
[1773129782716,1.31370039,86.989,86.952,1.15650204]
[1773129783219,1.31370039,86.987,86.953,11.50046576]
[1773129784614,1.26486907,86.959,86.896,70.32687147]
[1773129784831,1.26486907,86.959,86.921,1.27881403]
[1773129785016,1.26486907,86.969,86.94,10.88750592]
[1773129785217,1.26486907,86.979,86.941,1.27881403]
[1773129786138,12.15237499,86.97,86.941,1.27881403]
[1773129786333,1.26486907,86.969,86.93,10.88750592]
[1773129786535,1.26486907,86.959,86.922,40.26598559]
[1773129786720,1.26486907,86.959,86.923,1.27881403]
[1773129787835,1.26486907,86.959,86.925,1.27881403]
[1773129788237,1.26486907,86.939,86.885,1.27881403]
[1773129788424,1.26486907,86.939,86.901,1.27881403]
[1773129789846,1.26486907,86.929,86.903,1.27881403]
[1773129790520,1.26486907,86.938,86.903,1.27881403]
[1773129791122,10.88750592,86.93,86.903,1.27881403]
[1773129791422,1.26486907,86.929,86.902,11.50721502]
[1773129791620,1.26486907,86.929,86.894,11.50827444]
[1773129792038,10.88750592,86.92,86.894,11.50827444]
[1773129792244,1.26486907,86.927,86.894,12.78708847]
[1773129794246,1.26486907,86.919,86.894,12.78705721]
[1773129794445,1.26486907,86.919,86.889,11.50887388]
[1773129794749,1.26486907,86.919,86.89,1.27881403]
[1773129795338,1.26486907,86.919,86.892,1.27881403]
[1773129796034,1.26486907,86.927,86.892,1.27881403]
[1773129796342,1.26486907,86.927,86.901,1.27881403]
[1773129797145,28.75014458,86.957,86.911,1.27881403]
[1773129797340,28.75014458,86.957,86.891,97.82371016]
[1773129797341,1.26486907,86.956,86.923,1.27881403]
[1773129798129,1.26486907,86.954,86.923,1.27881403]
[1773129798946,1.26486907,86.949,86.923,1.27881403]
[1773129799533,1.26486907,86.949,86.925,1.27881403]
[1773129800037,1.26486907,86.956,86.925,1.27881403]
[1773129800631,11.49967225,86.959,86.93,4.06727796]
[1773129800834,11.49967225,86.959,86.931,1.27881403]
[1773129801340,12.76454132,86.959,86.931,1.27881403]
[1773129801535,1.26486907,86.958,86.931,1.27881403]
[1773129801739,1.26486907,86.958,86.932,11.50324391]
[1773129803156,1.26486907,86.956,86.922,1.27881403]
[1773129803347,1.26486907,86.949,86.911,12.78483743]
[1773129803656,1.26486907,86.949,86.912,1.27881403]
[1773129804952,1.26486907,86.947,86.914,1.27881403]
[1773129806850,1.26486907,86.929,86.898,1.27881403]
[1773129807553,4.06727796,86.92,86.898,1.27881403]
[1773129807745,1.26486907,86.922,86.898,1.27881403]
[1773129807950,4.06727796,86.96,86.902,1.27881403]
[1773129807951,1.26486907,86.94,86.902,1.27881403]
[1773129808148,1.26486907,86.939,86.902,1.27881403]
[1773129809553,4.06727796,86.93,86.902,1.27881403]
[1773129810057,1.26486907,86.939,86.904,1.27881403]
[1773129810961,1.26486907,86.929,86.903,40.27478912]
[1773129811842,1.26486907,86.929,86.903,11.5070826]
[1773129812235,1.26486907,86.929,86.896,1.27881403]
[1773129812442,1.26486907,86.929,86.901,1.27881403]
[1773129813557,4.06727796,86.92,86.901,1.27881403]
[1773129813758,1.37196138,86.929,86.901,1.27881403]
[1773129814458,1.37196138,86.929,86.903,1.37433041]
[1773129815663,1.37196138,86.929,86.904,11.50695019]
[1773129816059,11.50377323,86.928,86.901,11.50734744]
[1773129816246,1.37196138,86.927,86.901,11.50734744]
[1773129817759,3.69383402,86.957,86.881,1.37433041]
[1773129817760,1.37196138,86.919,86.881,1.37433041]
[1773129819045,1.37196138,86.919,86.883,1.37433041]
[1773129819366,1.37196138,86.919,86.882,11.50986395]
[1773129819367,1.37196138,86.919,86.891,1.37433041]
[1773129820065,1.37196138,86.919,86.89,4.06727796]
[1773129820759,1.37196138,86.919,86.882,40.28452383]
[1773129820760,1.37196138,86.926,86.901,1.37433041]
[1773129821165,12.87610699,86.926,86.901,1.37433041]
[1773129821542,1.37196138,86.938,86.901,1.37433041]
[1773129821748,1.37196138,86.938,86.904,1.37433041]
[1773129821964,1.37196138,86.938,86.891,40.28035124]
[1773129821965,1.37196138,86.938,86.91,5.44160837]
[1773129822562,1.37196138,86.938,86.91,1.37433041]
[1773129824550,1.37196138,86.938,86.911,11.5060234]
[1773129826877,1.37196138,86.936,86.903,1.37433041]
[1773129828370,1.37196138,86.929,86.901,11.50734744]
[1773129828568,1.37196138,86.919,86.89,1.37433041]
[1773129828775,1.37196138,86.919,86.891,11.50867178]
[1773129829360,1.37196138,86.919,86.892,1.37433041]
[1773129830969,1.37196138,86.919,86.894,1.36232266]
[1773129831157,1.30210693,86.929,86.894,1.36232266]
[1773129833776,1.30210693,86.929,86.896,1.36232266]
[1773129834682,1.30210693,86.943,86.901,1.36232266]
[1773129834881,1.30210693,86.939,86.901,1.36232266]
[1773129835178,1.30210693,86.929,86.895,40.27849703]
[1773129835375,1.30210693,86.919,86.895,11.50814201]
[1773129835575,1.30210693,86.917,86.885,11.50946653]
[1773129835771,1.30210693,86.909,86.885,11.50946653]
[1773129835979,1.30210693,86.909,86.882,1.36232266]
[1773129839581,1.30210693,86.909,86.883,12.87205413]
[1773129839784,11.50509675,86.918,86.883,11.50973147]
[1773129839993,1.30210693,86.917,86.884,1.36232266]
[1773129840881,28.75678015,86.937,86.891,1.36232266]
[1773129840882,1.30210693,86.926,86.891,1.36232266]
[1773129841557,1.30210693,86.933,86.901,1.36232266]
[1773129842083,1.30210693,86.933,86.9,4.06727796]
[1773129842084,1.30210693,86.933,86.903,1.36232266]
[1773129843382,1.30210693,86.94,86.91,4.06727796]
[1773129843574,1.30210693,86.94,86.911,1.36322381]
[1773129843778,11.5018355,86.943,86.911,1.36322381]
[1773129845391,1.39103178,86.971,86.932,11.50324391]
[1773129845578,1.39103178,86.989,86.961,1.36322381]
[1773129846090,45.96255486,87.028,86.932,69.01946348]
[1773129846091,1.39103178,86.988,86.97,4.06367235]
[1773129846272,1.39103178,86.995,86.967,1.36322381]
[1773129846472,45.94136181,87.068,86.98,4.06367235]
[1773129846473,1.39103178,87.009,86.98,4.06367235]
[1773129846781,4.06367235,87.02,86.981,1.36322381]
[1773129846985,40.21370712,87.035,86.991,1.36322381]
[1773129846986,1.39103178,87.021,86.991,1.36322381]
[1773129847783,0.1,87.04,86.982,1.36322381]
[1773129847784,1.39103178,87.009,86.982,1.36322381]
[1773129848001,1.39103178,87.017,86.991,1.36322381]
[1773129850080,1.39103178,87.017,86.993,1.36322381]
[1773129850667,4.06367235,87.02,86.993,1.36322381]
[1773129850977,1.39103178,87.029,86.993,1.36322381]
[1773129851771,0.1,87.04,87.011,1.36322381]
[1773129852289,0.1,87.04,86.978,45.98827146]
[1773129852290,1.39103178,87.019,86.993,11.49517777]
[1773129852776,4.16367235,87.04,86.994,1.36322381]
[1773129852777,1.39103178,87.028,86.994,1.36322381]
[1773129853507,1.39103178,87.019,86.993,11.49517777]
[1773129853690,1.39103178,87.009,86.993,11.49517777]
[1773129854002,1.39103178,87.009,86.988,11.49579298]
[1773129854569,1.39103178,87.007,86.977,11.49729238]
[1773129854775,1.39103178,86.999,86.977,11.49729238]
[1773129857598,1.39103178,86.999,86.97,1.36322381]
[1773129857895,1.39103178,86.989,86.962,11.49927554]
[1773129858089,1.39103178,86.989,86.963,1.36322381]
[1773129859795,1.39103178,86.987,86.964,11.49901108]
[1773129860091,4.06367235,86.98,86.964,11.49901108]
[1773129861111,4.06367235,86.98,86.912,57.52945508]
[1773129861112,1.39103178,86.979,86.912,57.52945508]
[1773129861276,4.06367235,86.96,86.931,1.36322381]
[1773129861780,4.06367235,86.96,86.932,11.50324391]
[1773129862097,4.06367235,86.96,86.933,1.36322381]
[1773129862302,1.39103178,86.969,86.933,1.36322381]
[1773129862477,1.39103178,86.969,86.941,1.36322381]
[1773129864196,1.39103178,86.969,86.942,11.50192082]
[1773129864382,1.39103178,86.969,86.943,1.36322381]
[1773129864790,1.39103178,86.959,86.931,11.5032968]
[1773129864984,1.39103178,86.959,86.92,4.06367235]
[1773129864985,5.45470413,86.94,86.915,1.36322381]
[1773129865191,1.39103178,86.939,86.915,1.36322381]
[1773129865376,4.06367235,86.93,86.891,1.36322381]
[1773129866098,5.45470413,86.93,86.891,1.36322381]
[1773129866397,1.39103178,86.945,86.911,1.36322381]
[1773129866602,4.06367235,86.94,86.911,1.36322381]
[1773129868803,4.06367235,86.94,86.913,1.36322381]
[1773129869388,4.06367235,86.93,86.913,1.36322381]
[1773129869694,1.39103178,86.939,86.913,1.36322381]
[1773129869902,1.39103178,86.954,86.913,1.36322381]
[1773129870100,1.39103178,86.954,86.921,1.36322381]
[1773129870295,1.39103178,86.949,86.921,1.36322381]
[1773129870606,4.06367235,86.94,86.921,1.36322381]
[1773129870802,1.39103178,86.949,86.921,1.36322381]
[1773129871306,1.39103178,86.959,86.923,1.36322381]
[1773129874415,4.06367235,86.96,86.925,1.41889378]
[1773129874709,4.06367235,86.95,86.925,1.41889378]
[1773129875290,4.06367235,86.96,86.931,1.41889378]
[1773129876201,45.97286907,87.008,86.925,1.41889378]
[1773129876202,4.06367235,86.95,86.925,1.41889378]
[1773129877019,1.35523882,86.949,86.925,1.41889378]
[1773129880511,1.35523882,86.939,86.912,1.41889378]
[1773129880710,4.06367235,86.95,86.912,1.41889378]
[1773129881300,4.06367235,86.95,86.921,1.41889378]
[1773129881696,28.74405322,86.975,86.911,40.2710819]
[1773129881697,1.35523882,86.963,86.931,1.41889378]
[1773129881891,5.41891117,86.97,86.931,1.41889378]
[1773129882090,1.35523882,86.969,86.931,1.41889378]
[1773129882397,1.35523882,86.969,86.932,11.50324391]
[1773129882597,1.35523882,86.969,86.933,1.41889378]
[1773129882898,4.06367235,86.96,86.933,1.41889378]
[1773129883600,5.41891117,86.96,86.933,1.41889378]
[1773129884704,1.35523882,86.959,86.934,11.50297927]
[1773129885219,1.35523882,86.959,86.921,11.50469966]
[1773129885220,1.35523882,86.939,86.921,11.50469966]
[1773129886012,1.35523882,86.939,86.916,11.50534027]
[1773129887295,4.06367235,86.93,86.916,11.50534027]
[1773129889114,1.34873618,86.933,86.91,30.06543677]
[1773129889314,4.06367235,86.93,86.91,30.06543677]
[1773129890296,1.34873618,86.94,86.911,1.30011899]
[1773129890501,1.34873618,86.939,86.911,1.30011899]
[1773129890712,4.06367235,86.94,86.911,1.30011899]
[1773129891316,4.06367235,86.94,86.913,1.30011899]
[1773129891797,1.34873618,86.946,86.913,1.30011899]
[1773129891997,4.06367235,86.94,86.913,1.30011899]
[1773129892396,1.34873618,86.946,86.913,1.30011899]
[1773129892597,1.34873618,86.939,86.913,1.30011899]
[1773129893105,4.06367235,86.94,86.913,1.30011899]
[1773129893696,4.06367235,86.94,86.915,1.30011899]
[1773129893897,1.34873618,86.947,86.915,1.30011899]
[1773129894116,4.06367235,86.94,86.915,1.30011899]
[1773129894618,4.06367235,86.95,86.921,1.30011899]
[1773129894821,1.34873618,86.954,86.921,1.30011899]
[1773129895007,4.06367235,86.96,86.931,1.30011899]
[1773129895700,1.34873618,86.968,86.933,1.30011899]
[1773129897019,1.34873618,86.959,86.933,1.30011899]
[1773129897221,1.34873618,86.949,86.932,11.50324391]
[1773129898025,4.06367235,86.96,86.927,1.30011899]
[1773129898198,32.43507508,86.984,86.927,1.30011899]
[1773129898199,4.06367235,86.95,86.927,1.30011899]
[1773129898399,1.34873618,86.983,86.931,1.30011899]
[1773129898605,4.06367235,86.97,86.941,1.30011899]
[1773129900418,3.69383402,86.994,86.926,40.2641327]
[1773129900419,4.06367235,86.95,86.928,1.30011899]
[1773129900919,1.34873618,86.953,86.928,1.30011899]
[1773129901304,5.41240853,86.96,86.928,1.30011899]
[1773129901704,1.34873618,86.959,86.928,1.30011899]
[1773129902507,1.34873618,86.966,86.931,1.30011899]
[1773129902714,4.06367235,86.96,86.931,1.30011899]
[1773129903424,5.41240853,86.96,86.931,1.30011899]
[1773129903723,1.36910109,86.959,86.931,1.30011899]
[1773129903919,1.36910109,86.949,86.929,11.5036409]
[1773129904322,1.36910109,86.956,86.93,1.3705124]
[1773129905838,1.36910109,86.956,86.932,1.3705124]
[1773129906325,11.49777582,86.974,86.932,1.3705124]
[1773129906524,1.36910109,86.97,86.932,1.3705124]
[1773129906725,5.43277344,86.97,86.932,1.3705124]
[1773129907431,1.36910109,86.969,86.932,1.3705124]
[1773129907936,4.0664747,86.96,86.934,1.3705124]
[1773129908320,1.36910109,86.979,86.934,1.3705124]
[1773129908521,1.36910109,86.969,86.934,1.3705124]
[1773129910638,4.0664747,86.96,86.936,1.3705124]
[1773129911832,1.36910109,86.949,86.915,1.3705124]
[1773129912133,4.0664747,86.96,86.903,1.3705124]
[1773129912134,4.0664747,86.93,86.903,1.3705124]
[1773129912331,4.0664747,86.94,86.903,1.3705124]
[1773129912835,4.0664747,86.94,86.905,1.3705124]
[1773129913030,1.36910109,86.939,86.905,1.3705124]
[1773129913338,4.0664747,86.93,86.905,1.3705124]
[1773129913533,1.36910109,86.938,86.905,1.3705124]
[1773129913837,4.0664747,86.92,86.905,1.3705124]
[1773129914023,4.0664747,86.93,86.905,1.3705124]
[1773129914437,4.0664747,86.93,86.87,0.2]
[1773129914438,4.0664747,86.92,86.884,1.3705124]
[1773129915250,1.36910109,86.944,86.901,1.3705124]
[1773129915418,4.0664747,86.93,86.901,1.3705124]
[1773129915736,1.36910109,86.933,86.901,1.3705124]
[1773129915955,5.43557579,86.95,86.921,1.3705124]
[1773129916561,1.36910109,86.949,86.921,1.3705124]
[1773129916738,40.24931575,86.958,86.909,1.3705124]
[1773129916739,1.36910109,86.939,86.909,1.3705124]
[1773129917249,4.0664747,86.94,86.911,1.3705124]
[1773129920638,4.0664747,86.94,86.912,11.50589101]
[1773129920943,4.0664747,86.94,86.913,1.3705124]
[1773129921243,1.36910109,86.949,86.913,1.3705124]
[1773129921442,12.87009592,86.949,86.921,1.3705124]
[1773129921823,11.50099483,86.949,86.921,1.3705124]
[1773129922741,4.0664747,86.95,86.921,1.3705124]
[1773129923639,4.0664747,86.95,86.923,1.3705124]
[1773129924336,1.36910109,86.951,86.923,1.3705124]
[1773129924734,4.0664747,86.95,86.923,1.3705124]
[1773129924940,1.36910109,86.949,86.923,1.3705124]
[1773129926721,1.36910109,86.949,86.925,1.3705124]
[1773129928344,4.0664747,86.96,86.925,1.3705124]
[1773129928530,1.36910109,86.959,86.925,1.3705124]
[1773129929237,1.36910109,86.967,86.931,1.3705124]
[1773129929835,1.36910109,86.974,86.941,1.3705124]
[1773129930540,1.36910109,86.959,86.927,1.3705124]
[1773129930737,1.36910109,86.949,86.927,1.3705124]
[1773129930939,1.36910109,86.963,86.931,1.3705124]
[1773129931243,83.85189347,87.131,86.951,1.3705124]
[1773129931244,173.19849573,87.1,86.951,1.3705124]
[1773129931423,173.19849573,87.1,86.942,132.27208943]
[1773129931424,1.36910109,87.079,87.003,3.69383402]
[1773129931620,0.1,87.1,87.07,3.0]
[1773129931848,1.36910109,87.109,87.07,2.42493168]
[1773129932046,1.36910109,87.109,87.08,4.0664747]
[1773129932340,1.46910109,87.11,87.08,4.0664747]
[1773129932539,45.87775811,87.189,87.071,1.3705124]
[1773129932540,1.36910109,87.139,87.071,1.3705124]
[1773129932744,4.25856402,87.151,87.111,1.3705124]
[1773129933045,4.25856402,87.151,87.09,4.0664747]
[1773129933261,4.25856402,87.151,87.077,6.19528809]
[1773129933262,4.0664747,87.13,87.077,1.3705124]
[1773129933426,4.0664747,87.12,87.081,1.3705124]
[1773129933621,3.69383402,87.147,87.081,1.3705124]
[1773129933622,40.16064256,87.15,87.081,1.3705124]
[1773129933842,10.8544849,87.12,87.071,1.36904025]
[1773129934144,10.8544849,87.11,87.072,1.36904025]
[1773129934347,57.37234652,87.15,87.072,1.36904025]
[1773129934552,40.16064256,87.15,87.081,1.36904025]
[1773129934750,4.25856402,87.151,87.131,1.36904025]
[1773129935130,4.25856402,87.151,87.132,11.47683973]
[1773129935437,0.84,87.16,87.092,91.85647653]
[1773129935438,0.84,87.16,87.133,1.36904025]
[1773129935643,1.29576544,87.18,87.141,1.36904025]
[1773129935843,1.29576544,87.172,87.133,1.36904025]
[1773129936049,45.87092111,87.202,87.133,1.36904025]
[1773129936050,1.29576544,87.181,87.133,1.36904025]
[1773129936340,45.85672892,87.229,87.131,11.47692136]
[1773129936341,1.29576544,87.189,87.161,1.36904025]
[1773129936641,10.8544849,87.21,87.132,1.36904025]
[1773129936642,10.8544849,87.17,87.132,1.36904025]
[1773129937047,1.29576544,87.159,87.103,1.36904025]
[1773129937343,10.8544849,87.12,87.086,1.36904025]
[1773129937536,1.29576544,87.121,87.087,1.36904025]
[1773129937844,10.8544849,87.13,87.091,1.36904025]
[1773129938145,1.29576544,87.119,87.081,1.36904025]
[1773129938524,1.29576544,87.129,87.091,1.36904025]
[1773129938728,1.29576544,87.129,87.09,9.3516281]
[1773129939124,1.29576544,87.138,87.1,22.33542453]
[1773129939437,1.29576544,87.129,87.09,10.8544849]
[1773129940029,11.47618118,87.137,87.1,10.8544849]
[1773129940229,10.8544849,87.13,87.1,10.8544849]
[1773129940432,10.8544849,87.13,87.09,10.8544849]
[1773129940747,1.29576544,87.129,87.1,10.8544849]
[1773129940948,1.29576544,87.169,87.121,1.36904025]
[1773129941148,11.4686304,87.195,87.153,1.36904025]
[1773129941450,11.4686304,87.195,87.16,12.22352515]
[1773129941652,1.29576544,87.189,87.15,10.8544849]
[1773129941842,1.29576544,87.169,87.124,1.36904025]
[1773129942039,1.29576544,87.159,87.12,10.8544849]
[1773129942756,1.29576544,87.149,87.119,1.36904025]
[1773129943055,1.29576544,87.149,87.091,40.18784948]
[1773129943056,1.29576544,87.159,87.121,1.36904025]
[1773129943545,1.29576544,87.139,87.091,1.36904025]
[1773129943750,1.29576544,87.119,87.06,10.8544849]
[1773129943948,12.15025034,87.11,87.071,1.36904025]
[1773129944128,1.29576544,87.203,87.101,1.36904025]
[1773129944331,1.29576544,87.169,87.076,4.82477569]
[1773129944538,177.74414014,87.204,87.12,10.8544849]
[1773129944539,1.29576544,87.159,87.12,10.8544849]
[1773129944864,1.29576544,87.139,87.103,1.36904025]
[1773129945326,10.8544849,87.14,87.103,1.36904025]
[1773129945327,1.29576544,87.137,87.103,1.36904025]
[1773129945727,1.29576544,87.119,87.079,1.36904025]
[1773129945931,10.8544849,87.1,87.072,1.36904025]
[1773129946134,1.29576544,87.099,87.07,1.14682646]
[1773129946752,1.29576544,87.089,87.051,1.36904025]
[1773129947055,10.8544849,87.07,87.041,1.37338582]
[1773129947252,1.3532398,87.059,87.022,11.4913209]
[1773129947436,11.48514396,87.069,87.03,10.8544849]
[1773129947640,10.8544849,87.06,87.03,10.8544849]
[1773129948040,10.8544849,87.05,87.002,28.73481892]
[1773129948245,1.3532398,87.049,87.01,10.8544849]
[1773129948552,10.8544849,87.04,87.01,10.8544849]
[1773129948947,10.8544849,87.03,86.963,11.49914331]
[1773129949140,1.3532398,87.03,86.99,10.8544849]
[1773129949341,10.8544849,87.02,86.982,11.49663148]
[1773129949538,1.3532398,87.019,86.99,10.8544849]
[1773129949740,1.3532398,87.019,86.983,1.37338582]
[1773129949942,12.84498298,87.019,86.983,1.37338582]
[1773129950143,1.3532398,87.018,86.982,11.49663148]
[1773129950455,1.3532398,87.018,86.859,7.34043704]
[1773129950456,10.8544849,86.99,86.96,10.8544849]
[1773129950633,1.3532398,86.999,86.96,10.8544849]